Workbook

Sheet Table rentabilité
B2: ETUDE RENTABILITE SOLUTIONS USAGE PRODUCTIF
B3: PRESSE A HUILE BAOBAB & MORINGA
B5: Dimmensionnement réel
B6: Dimmensionnement optimisé
B7: Dimmensionnement réel
B10: Cases à vérifier
B11: Cases à compléter
B12: Cases à laisser vides
B13: Cases calculées
B15: Caractéristiques techniques du Projet
B17: Usage Productif | C17: Rendement (kg/heure) | D17: Puissance (kW) | F17: Prix (FCFA) | G17: Energie consommée (KWh/j) | H17: Energie à produire (kWh/j) | I17: Fonctionnement optimal | K17: Coefficient déperdition (k)
D18: Projet | E18: Nominale | I18: heures par jour | J18: jours à l'année
B19: Presse KK baobab | C19: =IF(F81="Oui",G26*60/H26,G27*60/H27) -> 10 | D19: 0.5 | E19: 0.5 | F19: 1967871 | G19: =IF(F81="Oui",F26*I19*60/H26,F27*I19*60/H27)+1.2 -> 3.42 | H19: =G19/K19 -> 6.218181818 | I19: =F71*F72 -> 3 | J19: 320 | K19: 0.55
B20: Presse KK moringa | C20: =G28*60/H28 -> 2.666666667 | D20: 0.2 | E20: 0.2 | F20: 1967871 | G20: =(F28*I20*60/H28)+1.2 -> 2.536 | H20: =G20/K20 -> 4.610909091 | I20: =F71*G72 -> 3 | J20: 320 | K20: 0.55
B21: Dépulpeuse électrique
B22: Moulin solaire | C22: 50 | E22: 2 | F22: 500000 | G22: =I22*E22 -> 2 | H22: =I22*E22/K22 -> 3.333333333 | I22: =(C19*I19)/(C22*K22) -> 1 | K22: 0.6
B24: Huile | C24: Vitesse rotation | D24: Taille buse | E24: Graine ou poudre | F24: Energie (kWh) | G24: Quantité (Kg) | H24: Temps pressage (Min) | I24: Densité | J24: Teneur | L24: Rendement huile (L/kg)
J25: Huile | K25: Tourteaux
B26: Baobab | C26: 50 | D26: 16 ou sans | E26: Poudre | F26: 0.074 | G26: 1 | H26: 6 | I26: 0.916 | J26: 0.09 | K26: =100%-J26 -> 0.91 | L26: =I26*J26 -> 0.08244
B27: Baobab | C27: 50 | D27: 16 ou sans | E27: Graines | F27: 0.11 | G27: 1 | H27: 10 | I27: 0.916 | J27: 0.05 | K27: =100%-J27 -> 0.95 | L27: =I27*J27 -> 0.0458
B28: Moringa | C28: 50 | D28: 16 | E28: Graines | F28: 0.334 | G28: 2 | H28: 45 | I28: 0.908 | J28: 0.25 | K28: =100%-J28 -> 0.75 | L28: =I28*J28 -> 0.227
B30: Equipements facultatifs/facultatifs
B31: designation | C31: nombre | D31: prix
B32: Moulin solaire | C32: 1 | D32: 750000
B33: Dépulpeuse | C33: 1
B34: Séchoir solaire | C34: 1 | D34: 3800000
B35: Démarreur | C35: 1 | D35: 147000
B36: parafoudre | C36: 1 | D36: 140000
B37: Filtre huile | C37: 2 | D37: 100000
B38: local | C38: 1 | D38: 1000000
B39: Installation | C39: 1 | D39: 1000000
B40: Autre: FRA, codes barres, etc. | C40: 1 | D40: 750000
B41: Support modules | C41: 18 | D41: 35000
B42: Câbles et accessoires | C42: 1 | D42: 240000
B43: Système alimentation continue | C43: 0 | D43: 0
B44: Système de décantation | C44: 0 | D44: 0
B45: Certifications (bio, etc.) | C45: 0 | D45: 0
B47: Alimentation Solaire | C47: Puissance (kW) | D47: Prix (FCFA) | E47: Coefficient déperdition | F47: Tension (V) | H47: Batteries | I47: Capacité (Ampères/h) | J47: Prix (FCFA) | K47: Tension (V) | L47: Durée de vie* | M47: * en conditions optimales, annoncées constructeur
B48: module polycristatllin 270 Wc | C48: 0.27 | D48: 74750 | E48: 0.6 | F48: 24V | H48: Victron Energy Gel | I48: 220 | J48: 400000 | K48: 12 | L48: 10
B49: Sharp ND-AC275 | C49: 0.275 | D49: 80000 | E49: 0.6 | F49: 24V | H49: Victron | I49: 265 | J49: 327957 | K49: 12 | L49: 10
B50: BlueSolar SPM-300-24 Monocristallin | C50: 0.375 | D50: 78500 | E50: 0.6 | F50: 24V | H50: Batteries OPZS 1220 (Ah) | I50: 1220 | J50: 194400 | K50: 2 | L50: 7
H51: Tension nécessaire système | I51: =IF(J51<0.5,12,IF(AND(J51>=0.5,J51<2),24,IF(J51>=2,48))) -> 48 | J51: =F98*INDEX(C:C,MATCH(F76,B:B,0)) -> 4.95
B53: Onduleur | C53: kVa | D53: Prix (FCFA) | H53: Régulateur | I53: tension(V)_courant(A) | J53: Prix (FCFA) | K53: Tension (V)
B54: Vitron Energy Phoenix | C54: 3 | D54: 450000 | H54: BlueSolar 150V 35A de Victron Energy | I54: 150_35 | J54: 220000 | K54: 12V/24V/48V
B55: Victron quatro 5 kW | C55: 5 | D55: 1426500 | H55: victron | I55: 100_50 | J55: 114700 | K55: 12V/24V/48V
B56: Xtender | H56: victron | I56: 150_45 | J56: 650000 | K56: 12V/24V/48V
B58: Irradiation Solaire
B59: Month | C59: Jan | D59: Feb | E59: Mar | F59: Apr | G59: May | H59: Jun | I59: Jul | J59: Aug | K59: Sep | L59: Oct | M59: Nov | N59: Dec | O59: Year
B60: H(15)* | C60: 5.12 | D60: 5.75 | E60: 6.37 | F60: 6.61 | G60: 6.34 | H60: 6.05 | I60: 6.26 | J60: 5.51 | K60: 6.03 | L60: 5.81 | M60: 5.226 | N60: 5.03 | O60: =IF('Table rentabilité'!G87="x",MAX(C60:N60),IF('Table rentabilité'!G88="x",MIN(C60:N60),IF('Table rentabilité'!G89="x",AVERAGE(C60:N60),"erreur"))) -> 5.842166667
B62: Électricité du réseau | D62: 1ère Tranche | E62: 2ème Tranche | F62: 3ème Tranche | J62: 1ère Tranche | K62: 2ème Tranche | L62: 3ème Tranche | M62: Total
B63: UP-Petite Puissance | C63: Tranche (KWh) | D63: 50 | E63: 500 | F63: ∞ | H63: UP-Petite Puissance | I63: Energie par Tranche | J63: =(F91*30)-SUM(K63:L63) -> 50 | K63: =IF((F91*30)>D63,(F91*30)-D63-L63,0) -> 188.68 | L63: =IF((F91*30)>E63,(F91*30)-E63,0) -> 0 | M63: =SUM(J63:L63) -> 238.68
C64: Prix (KWh) | D64: 128.85 | E64: 135.68 | F64: 147.68 | I64: Coût (FCFA) | J64: =J63*D64 -> 6442.5 | K64: =K63*E64 -> 25600.1024 | L64: =L63*F64 -> 0 | M64: =SUM(J64:L64) -> 32042.6024
B65: UP-Moyenne Puissance | C65: Tranche | D65: 100 | E65: 500 | F65: ∞ | H65: UP-Moyenne Puissance | I65: Energie par Tranche | J65: =(F91*30)-SUM(K65:L65) -> 100 | K65: =IF((F91*30)>D65,(F91*30)-D65-L65,0) -> 138.68 | L65: =IF((F91*30)>E65,(F91*30)-E65,0) -> 0 | M65: 238.68
C66: Prix (KWh) | D66: 129.81 | E66: 136.53 | F66: 149.24 | I66: Coût (FCFA) | J66: =J65*D66 -> 12981 | K66: =K65*E66 -> 18933.9804 | L66: 0 | M66: 31914.9804
B68: Choix de dimensionnement du projet
B70: Production min. souhaitée (kg graine/jour) | F70: 30
B71: Temps de fonctionnement (heures) | F71: 6
B72: Ratio Baobab/Moringa | F72: 0.5 | G72: =100%-F72 -> 0.5
B73: Part des graines dans le poids total du fruit de baobab | F73: 0.75
B75: Choix de la presse | F75: Presse KK baobab
B76: Choix de l'alimentation solaire | F76: Sharp ND-AC275
B77: Choix du système de stokage | F77: Victron Energy Gel
B78: Choix de l'onduleur | F78: Vitron Energy Phoenix
B79: Choix du régulateur | F79: BlueSolar 150V 35A de Victron Energy
B80: Choix décortiqueuse solaire
B81: Choix moulin solaire | F81: Oui
B82: Equivalent Réseau | F82: =IF(M64<M66,B63,B65) -> UP-Moyenne Puissance
B84: Autonomie nécessaires au projet (jours) | F84: 1
B85: Profondeur décharge batteries | F85: 0.7
B87: Choix du cas pour dimensionnement solaire | F87: best case
F88: worst case
F89: average | G89: x
B91: Energie journalière consommée (KWh) | F91: =G19+G20+G22 -> 7.956 | G91: KWh
B92: Puissance crête projet (KW) | F92: 4.95
B93: Puissance equipements max | F93: =(INDEX(E:E,MATCH(F75,B:B,0)) +E22)*1.2 -> 3
B94: Capacité totale système stockage (Ampères/heure) | F94: =(G19+G20+G21)*1000*(F84)/(F85*I51) -> 177.2619048
B96: Nb de presses | F96: =ROUNDUP(F70/(C19*I19),0) -> 1 | G96: unités
B97: Nb décortiqueuses | F97: =IF(F80<>"",1,0) -> 0 | G97: unités
B98: Nb de panneaux solaires | F98: 18 | G98: unités | H98: =ARRONDI.SUP(F77/INDEX(C:C;EQUIV(F61;B:B;0));0)
B99: Nb de batteries en série | F99: =ROUNDUP(I51/INDEX(K:K,MATCH(F77,H:H,0)),0) -> 4 | G99: unités | H99: =ARRONDI.SUP(I37/INDEX(K:K;EQUIV(F62;H:H;0));0)
B100: Nb de batteries en dérivation | F100: 2 | G100: unités | H100: =ARRONDI.SUP(F78/INDEX(I:I;EQUIV(F62;H:H;0));0)
B101: Nb de batteries total | F101: =F99*F100 -> 8 | G101: unités
B102: Durée de vie attendue de la batterie | F102: =INDEX(L:L,MATCH(F77,H:H,0))*(130%-F85) -> 6 | G102: ans
B103: Nb onduleurs | F103: =ROUNDUP(F93/INDEX(C:C,MATCH(F78,B:B,0)),0) -> 1 | G103: unités | H103: =SI(OU(I37=24;I37=12);1;2)
B104: Nb régulateurs | F104: =IF(OR(I51=24,I51=12),1,2) -> 2 | G104: unités
B106: Ratio de fonctionnement | F106: 0.8
B107: Employés nécessaires pour fonctionnement | F107: 6 | G107: personnes
B108: Extrant annuel attendu en huile de Baobab | F108: =IF(F81="Oui",L26*C19*J19*I19*F106*F96,L27*C19*J19*I19*F106*F96) -> 633.1392 | G108: Litres
B109: Extrant annuel attendu en huile de Moringa | F109: =L28*C20*J20*I20*F106*F96 -> 464.896 | G109: Litres
B110: Extrant annuel attendu en tourteaux | F110: =(IF(F81="Oui",K26*C19*J19*I19,K27*C19*J19*I19)+(K28*C20*J20*I20))*F106*F96 -> 8524.8 | G110: Kilos
B111: Intrant annuel attendu en fruits de Baobab | F111: =C19*J19*I19*F106*F96*(1+(100%-F73)) -> 9600 | G111: Kilos
B112: Intrant annuel attendu en graines de Moringa | F112: =C20*I20*J20*F106*F96 -> 2048 | G112: Kilos
B113: Plantation Moringa | C113: plants | F113: 0 | G113: Plants | H113: 2 | I113: Kg en moyenne par arbre
C114: production | F114: =F113*H113 -> 0 | G114: Kilos
C115: disponibilité (année) | F115: 2 | G115: ème année
B117: Calcul de charges variables et fixes
B119: CHARGES VARIABLES D'EXPLOITATION
B120: Désignation | C120: Quantité | E120: Prix unitaire | F120: Montant total/an | G120: Montant total/an avec plantation | I120: évolution annuelle charges d'exploitation | L120: 0.01
B121: Graines de Baobab non décortiquées | C121: =F111*F73 -> 7200 | D121: Kilos | E121: 600 | F121: =E121*C121*L121 -> 2808000 | G121: =E121*C121*L121 -> 2808000 | I121: Part charges imputables au business de l'huile (Baobab)* | L121: 0.65
B122: Graines de Moringa décortiquées | C122: =F112 -> 2048 | D122: Kilos | E122: 2000 | F122: =E122*C122 -> 4096000 | G122: =(C122-F114)*E122 -> 4096000 | I122: * La création de Bouye sera gérée par RaS, les charges sont donc réparties
B123: Transport graines | C123: =C121/50 -> 144 | D123: sacs | E123: 200 | F123: =E123*C123 -> 28800 | G123: =E123*C123 -> 28800 | I123: entre les 2 projets selon le poids de chaque transformation dans le revenu généré
B124: Conditionnement | C124: =SUM(F108:F109) -> 1098.0352 | D124: litres | E124: 5421 | F124: =E124*C124 -> 5952448.819 | G124: =E124*C124 -> 5952448.819
B125: Etiquetage | C125: =C124*8 -> 8784.2816 | D125: étiquettes | E125: 262 | F125: =E125*C125 -> 2301481.779 | G125: =E125*C125 -> 2301481.779
B126: Salaires | C126: =F107 -> 6 | D126: =G106 -> 0 | E126: 55000 | F126: =E126*C126*12 -> 3960000 | G126: =E126*C126*12 -> 3960000
B127: Logistique Vente | C127: 1 | D127: logistique magasins | E127: 50000 | F127: =E127*C127*12 -> 600000 | G127: =E127*C127*12 -> 600000 | I127: Avantage coût électricité PV vs. Réseau | K127: Sur 1 an | L127: =(MIN(M64,M66)*12)-G152 -> -1205107.335
B128: Autre | C128: 0 | D128: 0 | E128: 0 | F128: =E128*C128*12 -> 0 | G128: =E128*C128*12 -> 0
B129: TOTAL (F CFA) | F129: =SUM(F121:F128) -> 19746730.6 | G129: =SUM(G121:G128) -> 19746730.6 | K129: Sur 5 ans | L129: =(MIN(M64,M66)*12*5)-(G152*5) -> -6025536.676
K130: Sur 9 ans | L130: =(MIN(M64,M66)*12*9)-(G152*9) -> -10845966.02
B131: INVESTISSEMENTS
B132: Désignation | C132: Quantité | D132: Prix unitaire TTC | E132: Durée de vie (an) | F132: Montant Total TTC | G132: Amortissement annuel
B133: Presse | C133: =IF($B$5=INDEX($B$6:$B$7,1,1),F96,'investissement réel'!C4) -> 1 | D133: =IF($B$5=INDEX($B$6:$B$7,1,1),F19,'investissement réel'!D4) -> 1967871 | E133: 10 | F133: =C133*D133 -> 1967871 | G133: =IFERROR(F133/E133,0) -> 196787.1
B134: Moulin solaire | C134: =IF($B$5=INDEX($B$6:$B$7,1,1),C32,'investissement réel'!C5) -> 1 | D134: =IF($B$5=INDEX($B$6:$B$7,1,1),D32,'investissement réel'!D5) -> 750000 | E134: 15 | F134: 750000 | G134: 50000
B135: Dépulpeuse | C135: =IF($B$5=INDEX($B$6:$B$7,1,1),C33,'investissement réel'!C6) -> 1 | D135: =IF($B$5=INDEX($B$6:$B$7,1,1),D33,'investissement réel'!D6) -> 0 | E135: 10 | F135: =C135*D135 -> 0 | G135: =IFERROR(F135/E135,0) -> 0
B136: Séchoir solaire | C136: =IF($B$5=INDEX($B$6:$B$7,1,1),C34,'investissement réel'!C7) -> 1 | D136: =IF($B$5=INDEX($B$6:$B$7,1,1),D34,'investissement réel'!D7) -> 3800000 | E136: 15 | F136: =C136*D136 -> 3800000 | G136: =IFERROR(F136/E136,0) -> 253333.3333
B137: Modules PV | C137: =IF($B$5=INDEX($B$6:$B$7,1,1),F98,'investissement réel'!C8) -> 18 | D137: =IF($B$5=INDEX($B$6:$B$7,1,1),INDEX(D:D,MATCH(F76,B:B,0)),'investissement réel'!D8) -> 250000 | E137: 20 | F137: 4500000 | G137: 225000
B138: Batterie | C138: =IF($B$5=INDEX($B$6:$B$7,1,1),F101,'investissement réel'!C9) -> 8 | D138: =IF($B$5=INDEX($B$6:$B$7,1,1),INDEX(J:J,MATCH(F77,H:H,0)),'investissement réel'!D9) -> 400000 | E138: =F102 -> 6 | F138: 3200000 | G138: 533333.3333
B139: Régulateur | C139: =IF($B$5=INDEX($B$6:$B$7,1,1),F104,'investissement réel'!C10) -> 1 | D139: =IF($B$5=INDEX($B$6:$B$7,1,1),INDEX(J:J,MATCH(F79,H:H,0)),'investissement réel'!D10) -> 220000 | E139: 10 | F139: 220000 | G139: 22000
B140: Onduleur chargeur | C140: =IF($B$5=INDEX($B$6:$B$7,1,1),F103,'investissement réel'!C11) -> 1 | D140: =IF($B$5=INDEX($B$6:$B$7,1,1),INDEX(D:D,MATCH(F78,B:B,0)),'investissement réel'!D11) -> 450000 | E140: 10 | F140: 450000 | G140: 45000
B141: Support aluminium | C141: =IF($B$5=INDEX($B$6:$B$7,1,1),C137,'investissement réel'!C12) -> 18 | D141: =IF($B$5=INDEX($B$6:$B$7,1,1),D41,'investissement réel'!D12) -> 35000 | E141: 20 | F141: 630000 | G141: 31500
B142: Démarreur | C142: =IF($B$5=INDEX($B$6:$B$7,1,1),C35,'investissement réel'!C13) -> 1 | D142: =IF($B$5=INDEX($B$6:$B$7,1,1),D35,'investissement réel'!D13) -> 147000 | E142: 15 | F142: 147000 | G142: 9800
B143: Parafoudre | C143: =IF($B$5=INDEX($B$6:$B$7,1,1),C36,'investissement réel'!C14) -> 1 | D143: =IF($B$5=INDEX($B$6:$B$7,1,1),D36,'investissement réel'!D14) -> 140000 | E143: 15 | F143: 140000 | G143: 9333.333333
B144: Câbles et accessoires | C144: =IF($B$5=INDEX($B$6:$B$7,1,1),C42,'investissement réel'!C15) -> 1 | D144: =IF($B$5=INDEX($B$6:$B$7,1,1),D42,'investissement réel'!D15) -> 240000 | E144: 20 | F144: 240000 | G144: 12000
B145: Système alimentation continue | C145: =IF($B$5=INDEX($B$6:$B$7,1,1),C43,'investissement réel'!C16) -> 0 | D145: =IF($B$5=INDEX($B$6:$B$7,1,1),D43,'investissement réel'!D16) -> 0 | F145: 0 | G145: 0
B146: Système de décantation | C146: =IF($B$5=INDEX($B$6:$B$7,1,1),C44,'investissement réel'!C17) -> 2 | D146: =IF($B$5=INDEX($B$6:$B$7,1,1),D44,'investissement réel'!D17) -> 0
B147: Filtre Huile | C147: =IF($B$5=INDEX($B$6:$B$7,1,1),C37,'investissement réel'!C18) -> 2 | D147: =IF($B$5=INDEX($B$6:$B$7,1,1),D37,'investissement réel'!D18) -> 100000 | E147: 1 | F147: 200000 | G147: 200000
B148: Local | C148: =IF($B$5=INDEX($B$6:$B$7,1,1),C38,'investissement réel'!C19) -> 1 | D148: =IF($B$5=INDEX($B$6:$B$7,1,1),D38,'investissement réel'!D19) -> 1000000 | E148: 0 | F148: 1000000 | G148: 0
B149: Installation | C149: =IF($B$5=INDEX($B$6:$B$7,1,1),C39,'investissement réel'!C20) -> 1 | D149: =IF($B$5=INDEX($B$6:$B$7,1,1),D39,'investissement réel'!D20) -> 1000000 | E149: 20 | F149: 1000000 | G149: 0
B150: Certifications (bio, etc.) | C150: =IF($B$5=INDEX($B$6:$B$7,1,1),C45,'investissement réel'!C21) -> 0 | D150: =IF($B$5=INDEX($B$6:$B$7,1,1),D45,'investissement réel'!D21) -> 0 | E150: 0 | F150: 0 | G150: 0
B151: Autre: FRA, codes barres, etc. | C151: =IF($B$5=INDEX($B$6:$B$7,1,1),C40,'investissement réel'!C22) -> 1 | D151: =IF($B$5=INDEX($B$6:$B$7,1,1),D40,'investissement réel'!D22) -> 750000 | E151: 0 | F151: 750000 | G151: 0
B152: TOTAL (F CFA) | F152: =SUM(F133:F151) -> 18994871 | G152: =SUM(G133:G151) -> 1588087.1
B154: Calcul des recettes d'exploitation
B156: RECETTES D'EXPLOITATION
B157: Désignation | C157: Quantité | E157: Prix unitaire | F157: Recettes annuelles | G157: Recettes mensuelles | H157: évolution annuelle recettes d'exploitation | K157: 0.01
B158: production huile baobab (L) | C158: =F108 -> 633.1392 | D158: =G108 -> Litres | E158: 37786 | F158: =C158*E158 -> 23923797.81 | G158: =F158/12 -> 1993649.818
B159: production huile moringa (L) | C159: 464.896 | D159: Litres | E159: 58573 | F159: =C159*E159 -> 27230353.41 | G159: =F159/12 -> 2269196.117
B160: production tourteau (kg) | C160: =F110 -> 8524.8 | D160: Kilos | E160: 150 | F160: =C160*E160 -> 1278720 | G160: 106560
B161: TOTAL (F CFA) | F161: =SUM(F158:F160) -> 52432871.22 | G161: =SUM(G158:G160) -> 4369405.935
B163: Ressources et Financement des investissements
B165: BFR (Besoin en fonds de roulement)
B166: Type de tiers | C166: Client/fournisseur | D166: Délais de paiement / stocks (jours) | E166: Part des achats/ventes
B167: Producteurs/vendeurs graines | C167: founisseur | D167: 0 | E167: 1
B168: transport graine | C168: founisseur | D168: 0 | E168: 1
B169: transport huile | C169: founisseur | D169: 0 | E169: 1
B170: Acheteurs huile brute (internationaux) | C170: client | D170: 60 | E170: 0.6
B171: Acheteurs huile brute (locaux) | C171: client | D171: 60 | E171: 0.4
B172: Stocks de consommable (graines) | D172: 30
B173: Stocks de produits finis (huile) | D173: 30
B175: Créances clients | C175: =((D170*F161/365*E170)+(D171*F161/365*E171)) -> 8619102.118
B176: Crédit fournisseurs | C176: =((D167*F129*E167/365)+(D168*F129*E168/365)+(D169*F129*E169/365))*-1 -> 0
B177: Impact Stocks consommable | C177: =F121*D172/365 -> 230794.5205
B178: Impact Stocks produits finis | C178: =F158*D173/365 -> 1966339.546
B179: BFR | C179: =SUM(C175:C178) -> 10816236.18 | D179: F CFA
B182: SCHÉMA DE FINANCEMENT | F182: ECHEANCIER DE REMBOURSEMENT
B183: Désignation | C183: Part | D183: Montant total TTC | F183: Année | G183: Capital | H183: Intérêts | I183: Reste | J183: Annuité | K183: Mensualité
B184: Investissements | D184: =F152 -> 18994871 | F184: =IF(D191>10,"nb an insuffisant",IF(D191>=1,1,"-")) -> 1 | G184: =SUMIFS('Remboursement Mensualités'!C$14:C$133,'Remboursement Mensualités'!$F$14:$F$133,'Table rentabilité'!$F184) -> 11249474.41 | H184: =SUMIFS('Remboursement Mensualités'!D$14:D$133,'Remboursement Mensualités'!$F$14:$F$133,'Table rentabilité'!$F184) -> 2140484.583 | I184: =SUMIFS('Remboursement Mensualités'!E$14:E$133,'Remboursement Mensualités'!$F$14:$F$133,'Table rentabilité'!$F184) -> 214330807.3 | J184: =SUMIFS('Remboursement Mensualités'!B$14:B$133,'Remboursement Mensualités'!$F$14:$F$133,'Table rentabilité'!$F184) -> 13389958.99 | K184: =J184/12 -> 1115829.916
B185: Besoin en fonds de roulement | D185: =C179 -> 10816236.18 | F185: =IF(D191>10,"nb an insuffisant",IF(D191>=2,2,"-")) -> 2 | G185: =SUMIFS('Remboursement Mensualités'!C$14:C$133,'Remboursement Mensualités'!$F$14:$F$133,'Table rentabilité'!$F185) -> 12599411.34 | H185: =SUMIFS('Remboursement Mensualités'!D$14:D$133,'Remboursement Mensualités'!$F$14:$F$133,'Table rentabilité'!$F185) -> 790547.6538 | I185: =SUMIFS('Remboursement Mensualités'!E$14:E$133,'Remboursement Mensualités'!$F$14:$F$133,'Table rentabilité'!$F185) -> 70714415.75 | J185: =SUMIFS('Remboursement Mensualités'!B$14:B$133,'Remboursement Mensualités'!$F$14:$F$133,'Table rentabilité'!$F185) -> 13389958.99 | K185: =J185/12 -> 1115829.916
B186: COÛT TOTAL (F CFA) | D186: =SUM(D184:D185) -> 29811107.18 | F186: =IF(D191>10,"nb an insuffisant",IF(D191>=3,3,"-")) -> - | G186: =SUMIFS('Remboursement Mensualités'!C$14:C$133,'Remboursement Mensualités'!$F$14:$F$133,'Table rentabilité'!$F186) -> 0 | H186: =SUMIFS('Remboursement Mensualités'!D$14:D$133,'Remboursement Mensualités'!$F$14:$F$133,'Table rentabilité'!$F186) -> 0 | I186: =SUMIFS('Remboursement Mensualités'!E$14:E$133,'Remboursement Mensualités'!$F$14:$F$133,'Table rentabilité'!$F186) -> 0 | J186: =SUMIFS('Remboursement Mensualités'!B$14:B$133,'Remboursement Mensualités'!$F$14:$F$133,'Table rentabilité'!$F186) -> 0 | K186: 0
B187: Apport personnel | C187: 0.2 | D187: =D186*C187 -> 5962221.437 | F187: =IF(D191>10,"nb an insuffisant",IF(D191>=4,4,"-")) -> - | G187: =SUMIFS('Remboursement Mensualités'!C$14:C$133,'Remboursement Mensualités'!$F$14:$F$133,'Table rentabilité'!$F187) -> 0 | H187: =SUMIFS('Remboursement Mensualités'!D$14:D$133,'Remboursement Mensualités'!$F$14:$F$133,'Table rentabilité'!$F187) -> 0 | I187: =SUMIFS('Remboursement Mensualités'!E$14:E$133,'Remboursement Mensualités'!$F$14:$F$133,'Table rentabilité'!$F187) -> 0 | J187: =SUMIFS('Remboursement Mensualités'!B$14:B$133,'Remboursement Mensualités'!$F$14:$F$133,'Table rentabilité'!$F187) -> 0 | K187: 0
B188: Subvention | C188: 0 | D188: =C188*D186 -> 0 | F188: =IF(D191>10,"nb an insuffisant",IF(D191>=5,5,"-")) -> - | G188: =SUMIFS('Remboursement Mensualités'!C$14:C$133,'Remboursement Mensualités'!$F$14:$F$133,'Table rentabilité'!$F188) -> 0 | H188: =SUMIFS('Remboursement Mensualités'!D$14:D$133,'Remboursement Mensualités'!$F$14:$F$133,'Table rentabilité'!$F188) -> 0 | I188: =SUMIFS('Remboursement Mensualités'!E$14:E$133,'Remboursement Mensualités'!$F$14:$F$133,'Table rentabilité'!$F188) -> 0 | J188: =SUMIFS('Remboursement Mensualités'!B$14:B$133,'Remboursement Mensualités'!$F$14:$F$133,'Table rentabilité'!$F188) -> 0 | K188: 0
B189: Emprunt | C189: =100%-(C188+C187) -> 0.8 | D189: =D186*C189 -> 23848885.75 | F189: =IF(D191>10,"nb an insuffisant",IF(D191>=6,6,"-")) -> - | G189: =SUMIFS('Remboursement Mensualités'!C$14:C$133,'Remboursement Mensualités'!$F$14:$F$133,'Table rentabilité'!$F189) -> 0 | H189: =SUMIFS('Remboursement Mensualités'!D$14:D$133,'Remboursement Mensualités'!$F$14:$F$133,'Table rentabilité'!$F189) -> 0 | I189: =SUMIFS('Remboursement Mensualités'!E$14:E$133,'Remboursement Mensualités'!$F$14:$F$133,'Table rentabilité'!$F189) -> 0 | J189: =SUMIFS('Remboursement Mensualités'!B$14:B$133,'Remboursement Mensualités'!$F$14:$F$133,'Table rentabilité'!$F189) -> 0 | K189: 0
B190: Taux de l'emprunt | D190: 0.12 | F190: =IF(D191>10,"nb an insuffisant",IF(D191>=7,7,"-")) -> - | G190: =SUMIFS('Remboursement Mensualités'!C$14:C$133,'Remboursement Mensualités'!$F$14:$F$133,'Table rentabilité'!$F190) -> 0 | H190: =SUMIFS('Remboursement Mensualités'!D$14:D$133,'Remboursement Mensualités'!$F$14:$F$133,'Table rentabilité'!$F190) -> 0 | I190: =SUMIFS('Remboursement Mensualités'!E$14:E$133,'Remboursement Mensualités'!$F$14:$F$133,'Table rentabilité'!$F190) -> 0 | J190: =SUMIFS('Remboursement Mensualités'!B$14:B$133,'Remboursement Mensualités'!$F$14:$F$133,'Table rentabilité'!$F190) -> 0 | K190: 0
B191: Remboursement de l'emprunt (années) | D191: 2 | F191: =IF(D191>10,"nb an insuffisant",IF(D191>=8,8,"-")) -> - | G191: =SUMIFS('Remboursement Mensualités'!C$14:C$133,'Remboursement Mensualités'!$F$14:$F$133,'Table rentabilité'!$F191) -> 0 | H191: =SUMIFS('Remboursement Mensualités'!D$14:D$133,'Remboursement Mensualités'!$F$14:$F$133,'Table rentabilité'!$F191) -> 0 | I191: =SUMIFS('Remboursement Mensualités'!E$14:E$133,'Remboursement Mensualités'!$F$14:$F$133,'Table rentabilité'!$F191) -> 0 | J191: =SUMIFS('Remboursement Mensualités'!B$14:B$133,'Remboursement Mensualités'!$F$14:$F$133,'Table rentabilité'!$F191) -> 0 | K191: 0
F192: =IF(D191>10,"nb an insuffisant",IF(D191>=9,9,"-")) -> - | G192: =SUMIFS('Remboursement Mensualités'!C$14:C$133,'Remboursement Mensualités'!$F$14:$F$133,'Table rentabilité'!$F192) -> 0 | H192: =SUMIFS('Remboursement Mensualités'!D$14:D$133,'Remboursement Mensualités'!$F$14:$F$133,'Table rentabilité'!$F192) -> 0 | I192: =SUMIFS('Remboursement Mensualités'!E$14:E$133,'Remboursement Mensualités'!$F$14:$F$133,'Table rentabilité'!$F192) -> 0 | J192: =SUMIFS('Remboursement Mensualités'!B$14:B$133,'Remboursement Mensualités'!$F$14:$F$133,'Table rentabilité'!$F192) -> 0 | K192: 0
F193: =IF(D191>10,"nb an insuffisant",IF(D191>=10,"Année 10","-")) -> - | G193: =SUMIFS('Remboursement Mensualités'!C$14:C$133,'Remboursement Mensualités'!$F$14:$F$133,'Table rentabilité'!$F193) -> 0 | H193: =SUMIFS('Remboursement Mensualités'!D$14:D$133,'Remboursement Mensualités'!$F$14:$F$133,'Table rentabilité'!$F193) -> 0 | I193: =SUMIFS('Remboursement Mensualités'!E$14:E$133,'Remboursement Mensualités'!$F$14:$F$133,'Table rentabilité'!$F193) -> 0 | J193: =SUMIFS('Remboursement Mensualités'!B$14:B$133,'Remboursement Mensualités'!$F$14:$F$133,'Table rentabilité'!$F193) -> 0 | K193: 0
F194: TOTAL | G194: =SUM(G184:G193) -> 23848885.75 | H194: =SUM(H184:H193) -> 2931032.237 | I194: =SUM(I184:I193) -> 285045223 | J194: =SUM(J184:J193) -> 26779917.98
B197: Ressources et Financement des investissements
B199: RESULTAT BRUT D'EXPLOITATION (EBE)
B200: Désignation / Durée (années) | C200: 0 | D200: 1 | E200: 2 | F200: 3 | G200: 4 | H200: 5 | I200: 6 | J200: 7 | K200: 8 | L200: 9 | M200: Total
B201: Recettes | C201: =D189+D187 -> 29811107.18 | D201: =F161 -> 52432871.22 | E201: =D201+($K$157*D201) -> 52957199.93 | F201: =E201+($K$157*E201) -> 53486771.93 | G201: =F201+($K$157*F201) -> 54021639.65 | H201: 54561856.05 | I201: 55107474.61 | J201: 55658549.35 | K201: 56215134.85 | L201: 56777286.2 | M201: =SUM(C201:L201) -> 521029891
B202: Dépenses | C202: =D184 -> 18994871 | D202: =IF($F$115>D$200,$F$129,$G$129) -> 19746730.6 | E202: =IF($F$115>E$200,$F$129+(D202*$L$120),IF($F$115=E$200,$G$129+(D202*$L$120),IF($F$115<E$200,D202+(D202*$L$120)))) -> 19944197.9 | F202: =IF($F$115>F$200,$F$129+(E202*$L$120),IF($F$115=F$200,$G$129+(E202*$L$120),IF($F$115<F$200,E202+(E202*$L$120)))) -> 20143639.88 | G202: 20345076.28 | H202: 20548527.05 | I202: 20754012.32 | J202: 20961552.44 | K202: 21171167.96 | L202: 21382879.64 | M202: 21596708.44
B203: Amortissements | C203: 0 | D203: =$G$152 -> 1588087.1 | E203: =$G$152 -> 1588087.1 | F203: 1588087.1 | G203: 1588087.1 | H203: 1588087.1 | I203: 1588087.1 | J203: 1588087.1 | K203: 1588087.1 | L203: 1588087.1 | M203: 14292783.9
B204: Remboursement emprunt | C204: 0 | D204: =IFERROR(INDEX($J$184:$J$193,MATCH(D200,$F$184:$F$193,0)),0) -> 13389958.99 | E204: =IFERROR(INDEX($J$184:$J$193,MATCH(E200,$F$184:$F$193,0)),0) -> 13389958.99 | F204: 0 | G204: 0 | H204: 0 | I204: 0 | J204: 0 | K204: 0 | L204: 0 | M204: 26779917.98
B205: Bénéfice avant impôts | C205: 0 | D205: =D201-SUM(D202:D204) -> 17708094.53 | E205: =E201-SUM(E202:E204) -> 18034955.93 | F205: 31755044.95 | G205: 32088476.27 | H205: 32425241.9 | I205: 32765375.19 | J205: 33108909.81 | K205: 33455879.78 | L205: 33806319.45 | M205: =SUM(C205:L205) -> 265148297.8
B206: Impôts sur le bénéfice | C206: 0 | D206: =IF(D205<0,0,0.3*D205) -> 5312428.359 | E206: =IF(E205<0,0,0.3*E205) -> 5410486.78 | F206: 9526513.484 | G206: 9626542.88 | H206: 9727572.57 | I206: 9829612.557 | J206: 9932672.944 | K206: 10036763.94 | L206: 10141895.84 | M206: =SUM(C206:L206) -> 79544489.35
B207: Bénéfice après impôts | C207: 0 | D207: =D205-D206 -> 12395666.17 | E207: =E205-E206 -> 12624469.15 | F207: 22228531.46 | G207: 22461933.39 | H207: 22697669.33 | I207: 22935762.63 | J207: 23176236.87 | K207: 23419115.85 | L207: 23664423.62 | M207: 185603808.5
B208: Trésorerie | C208: =C201-C202 -> 10816236.18 | D208: =C208+D207 -> 23211902.35 | E208: 35836371.51 | F208: =E208+F207 -> 58064902.97 | G208: 80526836.36 | H208: 103224505.7 | I208: 126160268.3 | J208: 149336505.2 | K208: 172755621 | L208: 196420044.7
B209: Cash Flows | C209: 0 | D209: =D207+D204-($H$194/$D$191) -> 24320109.04 | E209: 24548912.03 | F209: 20763015.34 | G209: 20996417.27 | H209: 21232153.21 | I209: 21470246.52 | J209: 21710720.75 | K209: 21953599.73 | L209: 22198907.5
B210: Cash Flows cumulés | C210: =-C202 -> -18994871 | D210: =C210+D209 -> 5325238.044 | E210: =D210+E209 -> 29874150.07 | F210: =E210+F209 -> 50637165.42 | G210: 71633582.69 | H210: 92865735.9 | I210: 114335982.4 | J210: 136046703.2 | K210: 158000302.9 | L210: 180199210.4
B213: Indicateurs économiques
B215: VAN | C215: =NPV(F215,IF(D200<=H215,D209,0),IF(E200<=H215,E209,0),IF(F200<=H215,F209,0),IF(G200<=H215,G209,0),IF(H200<=H215,H209,0),IF(I200<=H215,I209,0),IF(J200<=H215,J209,0),IF(K200<=H215,K209,0),IF(L200<=H215,L209,0))-D184 -> 138898856.4 | D215: FCFA | E215: Taux d'actualisation | F215: 0.05 | G215: Durée VAN (ans) | H215: 9 | N215: =-D184+IF(H215>=D200,(D207+D204-H194/D191)*((1+F215)^-1),0)+IF(H215>=E200,(E207+E204-H194/D191)*((1+F215)^-2),0)+IF(H215>=F200,(F207+F204-H194/D191)*((1+F215)^-3),0)+IF(H215>=G200,(G207+G204-H194/D191)*((1+F215)^-4),0)+IF(H215>=H200,(H207+H204-H194/D191)*((1+F215)^-5),0)+IF(H215>=I200,(I207+I204-H194/D191)*((1+F215)^-6),0)+IF(H215>=J200,(J207+J204-H194/D191)*((1+F215)^-7),0)+IF(H215>=K200,(K207+K204-H194/D191)*((1+F215)^-8),0)+IF(H215>=L200,(L207+L204-H194/D191)*((1+F215)^-9),0) -> 138898856.4 | O215: calcul VAN
B216: TRI | C216: =IRR(N216:W216) -> 1.247400637 | N216: =-D184 -> -18994871 | O216: =IF(D200<=H215,D209,0) -> 24320109.04 | P216: =IF(E200<=H215,E209,0) -> 24548912.03 | Q216: =IF(F200<=H215,F209,0) -> 20763015.34 | R216: =IF(G200<=H215,G209,0) -> 20996417.27 | S216: =IF(H200<=H215,H209,0) -> 21232153.21 | T216: =IF(I200<=H215,I209,0) -> 21470246.52 | U216: =IF(J200<=H215,J209,0) -> 21710720.75 | V216: =IF(K200<=H215,K209,0) -> 21953599.73 | W216: =IF(L200<=H215,L209,0) -> 22198907.5
B217: RSI | C217: =SUM(O216:W216)/D184 -> 10.48672989 | D217: ="Pour 1000 CFA investis, on récupère "&ROUND(N217,0)&" CFA" -> Pour 1000 CFA investis, on récupère 9487 CFA | N217: =(C217-1)*1000 -> 9486.729886
B218: DRCI | C218: =N218+(-P218/(O218-P218)) -> 0.7810356017 | D218: ="Le délai de récupération est de "&ROUNDDOWN(C218,0)&" ans et "&ROUNDDOWN((C218-ROUNDDOWN(C218,0))*12,0)&" mois" -> Le délai de récupération est de 0 ans et 9 mois | N218: =IF(AND(L210<0,L200<=H215),L200,IF(AND(K210<0,K200<=H215),K200,IF(AND(J210<0,J200<=H215),J200,IF(AND(I210<0,I200<=H215),I200,IF(AND(H210<0,H200<=H215),H200,IF(AND(G210<0,G200<=H215),G200,IF(AND(F210<0,F200<=H215),F200,IF(AND(E210<0,E200<=H215),E200,IF(AND(D210<0,D200<=H215),D200,IF(AND(C210<0,C200<=H215),C200)))))))))) -> 0 | O218: =INDEX(C210:L210,MATCH(INDEX(C200:L200,MATCH(P218,C210:L210,0))+1,C200:L200,0)) -> 5325238.044 | P218: =IF(AND(L210<0,L200<=H215),L210,IF(AND(K210<0,K200<=H215),K210,IF(AND(J210<0,J200<=H215),J210,IF(AND(I210<0,I200<=H215),I210,IF(AND(H210<0,H200<=H215),H210,IF(AND(G210<0,G200<=H215),G210,IF(AND(F210<0,F200<=H215),F210,IF(AND(E210<0,E200<=H215),E210,IF(AND(D210<0,D200<=H215),D210,IF(AND(C210<0,C200<=H215),C210)))))))))) -> -18994871
B219: DSCR | C219: =(D201-D202)/(D204) -> 2.441093407

Sheet Remboursement Mensualités (hidden)
A1: Remboursement de prêt
A2: Taux annuel | B2: ='Table rentabilité'!D190 -> 0.12
A3: Capital emprunté | B3: ='Table rentabilité'!D189 -> 23848885.75
A4: Durée du prêt (en année) | B4: ='Table rentabilité'!D191 -> 2 | C4: =B4*12 -> 24
A5: Mensualité à régler | B5: =-PMT((1+B2)^(1/12)-1,B4*12,B3) -> 1115829.916 | C5: Formule mensualité | D5: =-VPM((1+B2)^(1/12)-1;B4*12;B3)
A7: Décomposition de la mensualité
A8: Remboursement du principal | B8: =-PPMT((1+B2)^(1/12)-1,1,B4*12,B3) -> 889532.7774 | C8: Formule principal | D8: =-PRINCPER((1+B2)^(1/12)-1;1;B4*12;B3)
A9: Remboursement des interêts | B9: =-IPMT((1+B2)^(1/12)-1,1,B4*12,B3) -> 226297.1386 | C9: Formule intérêt | D9: =-INTPER((1+B2)^(1/12)-1;1;B4*12;B3)
A12: Dans les formules ci-dessous Taux de période = TP = (1+$B$2)^(1/12)-1
A13: Périodes | B13: Mensualité | C13: Capital | D13: Intérêts | E13: Reste (ou résiduel) | F13: Années
A14: =IF(B4<>0,1,"-") -> 1 | B14: =IF(A14<>"-",C14+D14,"") -> 1115829.916 | C14: =IF(A14<>"-",-PPMT((1+$B$2)^(1/12)-1,A14,$B$4*12,$B$3),"") -> 889532.7774 | D14: =IF(A14<>"-",-IPMT((1+$B$2)^(1/12)-1,A14,$B$4*12,$B$3),"") -> 226297.1386 | E14: =IF(A14<>"-",$B$3+CUMPRINC((1+$B$2)^(1/12)-1,$B$4*12,$B$3,1,A14,0),"") -> 22959352.97 | F14: =IF(A14<>"-",1,"") -> 1 | G14: =IF(A14<>"-",1,"") -> 1
A15: =IF(AND($B$4<>0,A14<$C$4),A14+1,"-") -> 2 | B15: =IF(A15<>"-",C15+D15,"") -> 1115829.916 | C15: =IF(A15<>"-",-PPMT((1+$B$2)^(1/12)-1,A15,$B$4*12,$B$3),"") -> 897973.3698 | D15: =IF(A15<>"-",-IPMT((1+$B$2)^(1/12)-1,A15,$B$4*12,$B$3),"") -> 217856.5462 | E15: =IF(A15<>"-",$B$3+CUMPRINC((1+$B$2)^(1/12)-1,$B$4*12,$B$3,1,A15,0),"") -> 22061379.6 | F15: =IF(A15<>"-",IF(G14<G15,F14,F14+1),"") -> 1 | G15: =IF(A15="-","",IF(G14<12,G14+1,1)) -> 2
A16: =IF(AND($B$4<>0,A15<$C$4),A15+1,"-") -> 3 | B16: 1115829.916 | C16: 906494.0531 | D16: 209335.8629 | E16: 21154885.55 | F16: =IF(A16<>"-",IF(G15<G16,F15,F15+1),"") -> 1 | G16: =IF(A16="-","",IF(G15<12,G15+1,1)) -> 3
A17: 4 | B17: 1115829.916 | C17: 915095.5875 | D17: 200734.3285 | E17: 20239789.96 | F17: 1 | G17: 4
A18: 5 | B18: 1115829.916 | C18: 923778.7401 | D18: 192051.176 | E18: 19316011.22 | F18: 1 | G18: 5
A19: 6 | B19: 1115829.916 | C19: 932544.2852 | D19: 183285.6308 | E19: 18383466.93 | F19: 1 | G19: 6
A20: 7 | B20: 1115829.916 | C20: 941393.0049 | D20: 174436.9112 | E20: 17442073.93 | F20: 1 | G20: 7
A21: 8 | B21: 1115829.916 | C21: 950325.6882 | D21: 165504.2279 | E21: 16491748.24 | F21: 1 | G21: 8
A22: 9 | B22: 1115829.916 | C22: 959343.1318 | D22: 156486.7842 | E22: 15532405.11 | F22: 1 | G22: 9
A23: 10 | B23: 1115829.916 | C23: 968446.1402 | D23: 147383.7759 | E23: 14563958.97 | F23: 1 | G23: 10
A24: 11 | B24: 1115829.916 | C24: 977635.5251 | D24: 138194.391 | E24: 13586323.44 | F24: 1 | G24: 11
A25: 12 | B25: 1115829.916 | C25: 986912.1061 | D25: 128917.8099 | E25: 12599411.34 | F25: 1 | G25: 12
A26: 13 | B26: 1115829.916 | C26: 996276.7107 | D26: 119553.2053 | E26: 11603134.63 | F26: 2 | G26: 1
A27: 14 | B27: 1115829.916 | C27: 1005730.174 | D27: 110099.7419 | E27: 10597404.45 | F27: 2 | G27: 2
A28: 15 | B28: 1115829.916 | C28: 1015273.34 | D28: 100556.5765 | E28: 9582131.114 | F28: 2 | G28: 3
A29: 16 | B29: 1115829.916 | C29: 1024907.058 | D29: 90922.85801 | E29: 8557224.056 | F29: 2 | G29: 4
A30: 17 | B30: 1115829.916 | C30: 1034632.189 | D30: 81197.72716 | E30: 7522591.867 | F30: 2 | G30: 5
A31: 18 | B31: 1115829.916 | C31: 1044449.599 | D31: 71380.31656 | E31: 6478142.268 | F31: 2 | G31: 6
A32: 19 | B32: 1115829.916 | C32: 1054360.165 | D32: 61469.75058 | E32: 5423782.102 | F32: 2 | G32: 7
A33: 20 | B33: 1115829.916 | C33: 1064364.771 | D33: 51465.14529 | E33: 4359417.332 | F33: 2 | G33: 8
A34: 21 | B34: 1115829.916 | C34: 1074464.308 | D34: 41365.60837 | E34: 3284953.024 | F34: 2 | G34: 9
A35: 22 | B35: 1115829.916 | C35: 1084659.677 | D35: 31170.23904 | E35: 2200293.347 | F35: 2 | G35: 10
A36: 23 | B36: 1115829.916 | C36: 1094951.788 | D36: 20878.12796 | E36: 1105341.559 | F36: 2 | G36: 11
A37: 24 | B37: 1115829.916 | C37: 1105341.559 | D37: 10488.35717 | E37: 0 | F37: 2 | G37: 12
A38: -
A39: -
A40: -
A41: -
A42: -
A43: -
A44: -
A45: -
A46: -
A47: -
A48: -
A49: -
A50: -
A51: -
A52: -
A53: -
A54: -
A55: -
A56: -
A57: -
A58: -
A59: -
A60: -
A61: -
A62: -
A63: -
A64: -
A65: -
A66: -
A67: -
A68: -
A69: -
A70: -
A71: -
A72: -
A73: -
A74: -
A75: -
A76: -
A77: -
A78: -
A79: - | B79: =IF(A79<>"-",C79+D79,"") ->  | C79: =IF(A79<>"-",-PPMT((1+$B$2)^(1/12)-1,A79,$B$4*12,$B$3),"") ->  | D79: =IF(A79<>"-",-IPMT((1+$B$2)^(1/12)-1,A79,$B$4*12,$B$3),"") ->  | E79: =IF(A79<>"-",$B$3+CUMPRINC((1+$B$2)^(1/12)-1,$B$4*12,$B$3,1,A79,0),"") -> 
A80: =IF(AND($B$4<>0,A79<$C$4),A79+1,"-") -> - | F80: =IF(A80<>"-",IF(G79<G80,F79,F79+1),"") ->  | G80: =IF(A80="-","",IF(G79<12,G79+1,1)) -> 
A81: -
A82: -
A83: -
A84: -
A85: -
A86: -
A87: -
A88: -
A89: -
A90: -
A91: -
A92: -
A93: -
A94: -
A95: -
A96: -
A97: -
A98: -
A99: -
A100: -
A101: -
A102: -
A103: -
A104: -
A105: -
A106: -
A107: -
A108: -
A109: -
A110: -
A111: -
A112: -
A113: -
A114: -
A115: -
A116: -
A117: -
A118: -
A119: -
A120: -
A121: -
A122: -
A123: -
A124: -
A125: -
A126: -
A127: -
A128: -
A129: -
A130: -
A131: -
A132: -
A133: -

Sheet investissement réel
B3: Désignation | C3: Quantité | D3: Prix unitaire TTC | E3: Montant Total TTC | F3: Durée de vie (an) | G3: Amortissement annuel
B4: Presse | C4: 1 | D4: 1967871 | E4: =C4*D4 -> 1967871 | F4: 10 | G4: =E4/F4 -> 196787.1
B5: Moulin solaire | C5: 1 | D5: 750000 | E5: =C5*D5 -> 750000 | F5: 15 | G5: =E5/F5 -> 50000
B6: Dépulpeuse | C6: 1 | D6: 0 | E6: 0 | F6: 10 | G6: 0
B7: Séchoir solaire | C7: 1 | D7: 3800000 | E7: 3800000 | F7: 15 | G7: 253333.3333
B8: Modules PV | C8: 18 | D8: 250000 | E8: =C8*D8 -> 4500000 | F8: 20 | G8: 225000
B9: Batterie | C9: 8 | D9: 400000 | E9: 3200000 | F9: 6 | G9: 533333.3333
B10: Régulateur | C10: 1 | D10: 220000 | E10: 220000 | F10: 10 | G10: 22000
B11: Onduleur chargeur | C11: 1 | D11: 450000 | E11: =C11*D11 -> 450000 | F11: 10 | G11: =E11/F11 -> 45000
B12: Support aluminium | C12: 18 | D12: 35000 | E12: 630000 | F12: 20 | G12: 31500
B13: Démarreur | C13: 1 | D13: 147000 | E13: 147000 | F13: 15 | G13: 9800
B14: Parafoudre | C14: 1 | D14: 140000 | E14: 140000 | F14: 15 | G14: 9333.333333
B15: Câbles et accessoires | C15: 1 | D15: 240000 | E15: 240000 | F15: 20 | G15: 12000
B16: Système alimentation continue | C16: 0 | D16: 0 | E16: =C16*D16 -> 0 | F16: 15 | G16: 0
B17: Système de décantation | C17: 2 | D17: 0 | E17: 0
B18: Filtre Huile | C18: 2 | D18: 100000 | E18: 200000 | F18: 1 | G18: 200000
B19: Local | C19: 1 | D19: 1000000 | E19: 1000000 | F19: 0
B20: Installation | C20: 1 | D20: 1000000 | E20: 1000000 | F20: 20
B21: Certifications (bio, etc.) | C21: 0 | D21: 0 | E21: =C21*D21 -> 0 | F21: 0
B22: Autre: FRA, codes barres, etc. | C22: 1 | D22: 750000 | E22: 750000 | F22: 0
B23: TOTAL (F CFA) | E23: =SUM(E4:E22) -> 18994871 | G23: =SUM(G4:G22) -> 1588087.1

Sheet Modèles envisagés (ex.arachide) (hidden)
B2: Analyse économique
B5: Contexte | D5: Les producteurs d'arachides sont dépendants du prix de rachat de leurs graines désormais fixé par l'Etat mais qui doit premettre à la filière de rester compétitive notamment face aux autres huiles importées
D6: Des intermédiaires ont envahis le marché, les opérateurs privés de stockage (OPS) qui achètent souvent à très bas prix les productions d'arachide qui doivent être écoulées (en-dessous du prix de l'Etat)
D7: La transformation artisanale de l'arachide brute en huile est en plein essor car elle permet de générer un revenu supplémentaire dans les bassins arachidiers
D8: La transformation de l'arachide en huile au niveau artisanal a souvent été freinée par des problèmes importants: impossibilité de stocker la production d'arachide, développement de maladies (aflatoxine notamment), concurrence élevée des industriels, etc.
B12: SWOT | D12: Forces | E12: > Potentiel de développement économique local important: augmentation nette des gains potentiels de revenus liés à la revente d'une huile brute pour la consommation locale. Avec un prix de vente situé entre le prix de l'huile brute à destination des raffineurs et de l'huile raffinée mise sur le marché (entre 800 et 1200 FCFA), le gain de CA par kilo d'arachide se situe entre 70 FCFA et 250 FCFA. > Qualité de l'huile brute peut être améliorée sensiblement avec les moyens techniques d'une presse solaire. Notamment pour lutter contre l'aflatoxine. L'ajout de filtres peut encore augmenter cette qualité et rapprocher le produit de l'huile raffinée. > la capacité de traitement de la presse solaire par rapport à la presse manuelle résout un certain nombre de problèmes liés au stockage de la graine | L12: Faiblesses | M12: > Le projet a des gains marginaux peu élevés. Sa rentabilité passe donc par un fonctionnement intensif et un apport important de matière première qui n'est pas garanti. Par ailleurs, sa durée d'amortissement peut être longue et une toute variation des prix sur le marché de l'arachide peut l'affecter durablement > Il n'existe pas de projets de référence similaires qui peuvent donner des indications claires sur la durabilité et la rentabilité de la solution
D13: Opportunités | E13: > Les transformateurs artisanaux d'huile d'arachide sont déjà nombreux et le métier n'est pas nouveau. L'exploitation de l'avantage comparatif de la technologie solaire pourra donc rapidement porter ses fruits > Il existe une demande locale d'huile d'arachide de meilleure qualité et économiquement attrayante: l'huile d'arachide est adaptée à la cuisine sénégalaise et la diminution des risques sanitaires la rendent à nouveau attrayante. | L13: Menaces | M13: > Le marché de l'huile d'arachide est un marché complexe: le challenge est économique plus que technologique. Les acteurs devront être accompagnés pour trouver les fournisseurs d'arachide et être capable de regrouper les productions et trouver les débouchés au niveau de la vente de l'huile brute. > Le marché est composé d'acteurs multiples et aux intérêts économiques importants. Le risque est élevé pour les bénéficiaires du projet de subir la concurrence aussi bien loyale des industriels et déloyale des OPS
B15: Modèles économiques
C18: Modèle 1 | K18: Modèle 2
C19: Business de transformation | K19: Business de transformation
C21: Intrant | D21: Graine décortiquée rachetée aux producteurs | K21: Intrant | L21: Graine non décortiquée rachetée aux producteurs
C22: Extrant | D22: Revente d'une l'huile non raffinée aux particuliers | K22: Extrant | L22: Revente d'une l'huile non raffinée aux particuliers
F24: Solution 1 | G24: Solution 2 | N24: Solution 1 | O24: Solution 2
C25: Nb presses | F25: 1 | G25: 2 | K25: Nb presses | N25: 1 | O25: 2
C26: Profitabilité | F26: 3ème année | G26: 1ère année | K26: Profitabilité | N26: 1ère année | O26: 1ère année
C27: Intrant arachide min (kg) | F27: 20,2 T | G27: 33,6 T | K27: Intrant arachide min (kg) | N27: 10,1 T | O27: 13,4 T
C28: Fonctionnement presse min (heures/jour) | F28: 12 | G28: 10 | K28: Fonctionnement presse min (heures/jour) | N28: 6 | O28: 4
C29: Prix achat arachide décortiquée maximum | F29: 375 | G29: 400 | K29: Prix achat arachide décortiquée maximum | N29: 220 | O29: 220
C30: Prix vente huile brute minimum | F30: 1000 | G30: 1000 | K30: Prix vente huile brute minimum | N30: 1000 | O30: 1000
C31: Prix de vente tourteaux minimum | F31: 200 | G31: 200 | K31: Prix de vente tourteaux minimum | N31: 200 | O31: 200
C32: Bénéfice min cumulé sur 5 ans | F32: 297672 | G32: 2395840 | K32: Bénéfice min cumulé sur 5 ans | N32: 1385014 | O32: 3016369
C33: Bénéfice min cumulé sur 9 ans | F33: 8653293.665 | G33: 16706237.69 | K33: Bénéfice min cumulé sur 9 ans | N33: 7186440.305 | O33: 11988417
C35: Alerte: | D35: Incapacité des petits producteurs à décortiquer | K35: Alerte: | L35: Nécessité d'acheter aux petits producteurs au prix fixé par l'Etat qui peut évoluer
D36: peut mener à privilégier la vente aux industriels? | L36: Prise en compte d'une évolution du prix dans le business model nécessaire
D37: Complexité business: fournisseurs + clients à trouver; gestion stocks
C41: Modèle 3 | K41: Modèle 4
C42: Business de service de transformation avec décortiqueuse | K42: Business mixte production avec décortiqueuse et service
C44: Intrant | D44: Aucun (producteur reste propriétaire d'arachide) | K44: Intrant | L44: Aucun (producteur reste propriétaire d'arachide)
C45: Extrant | D45: Service de pressage d'huile | K45: Extrant | L45: Service de pressage d'huile
F47: Solution 1 | G47: Solution 2 | N47: Solution 1 | O47: Solution 2
C48: Nb presses | F48: 1 | G48: 2 | K48: Nb presses | N48: 1 | O48: 2
C49: Profitabilité | F49: 1ère année | G49: 1ère année | K49: Profitabilité | N49: 1ère année | O49: 1ère année
C50: Intrant arachide min (kg) | F50: 13,4 T | G50: 23,5 T | K50: Intrant arachide min (kg) | N50: 13,4 T | O50: 16,8 T
C51: Fonctionnement presse min (heures/jour) | F51: 11 | G51: 7 | K51: Fonctionnement presse min (heures/jour) | N51: 8 | O51: 5
K52: Prix achat arachide décortiquée maximum | N52: 220 | O52: 220
C53: Prix prestation min | F53: 200 | G53: 200 | K53: Prix vente huile brute minimum | N53: 1000 | O53: 1000
C54: Bénéfice min cumulé sur 5 ans | F54: 1214862 | G54: 2265039 | K54: Prix prestation min | N54: 150 | O54: 150
C55: Bénéfice min cumulé sur 9 ans | F55: 7632052.638 | G55: 11477664.59 | K55: Bénéfice min cumulé sur 5 ans | N55: 683594 | O55: 1297217
K56: Bénéfice min cumulé sur 9 ans | N56: 6259903.818 | O56: 8804899.879
C58: Alerte: | D58: Grande incertitude sur la durée de fonctionnement de la machine relatif | K58: Alerte:
D59: à l'imprévisibilité de l'apport en graines
B64: Préconisations | D64: (1) La décortiqueuse semble clé pour permettre d'obtenir un projet rentable dans la durée, car elle permet d'augmenter la marge sur l'huile vendue
D65: (2) Choisir 2 pilotes complémentaires:
E66: a. Un pilote avec un modèle d'exploitation plus "simple" de type "service de transformation" (modèle 3 ou 4) avec des chances de réussite plus élevées
E67: b. Un pilote avec un modèle d'exploitation complexe (modèle 1 ou 2) qui sera un pilote plus risqué
D68: (3) Choisir comme cible des producteurs déjà impliqués dans la transformation de l'arachide en huile afin de simplifier l'approche business et augmenter les chancs de réussite du projet
D69: (4) Dans le cas d'un pilote complexe avec achat de l'arachide aux producteurs, favoriser un modèle tout intégré avec système de décortication solaire, qui permettra de générer un revenu marginal plus élevé
D70: (5) La performance du projet étant très dépendante de la productivité de la machine, l'entretien sera primordial pour limiter les pannes et arrêts de production: mettre en place un système d'épargne des amortissements
D71: pour financer les éventuels travaux. Ce système pourra être géré par un organisme partenaire (commune ou ONG locale).
